fUST/lending_fUST_20240118
["ID","MTS","AMOUNT","RATE_DAILY","PERIOD"]
[312060965,1705590646296,-1284.880037,0.00041553,120]
[312060966,1705590646305,-151.0,0.00041614,21]
[312060967,1705590646315,-199.85839,0.00041644,2]
[312060968,1705590646324,-680.104669,0.00041644,2]
[312060969,1705590646342,-151.0,0.00041812,21]
[312060970,1705590646356,-150.30083188,0.00041832,14]
[312060971,1705590646366,-301.8792483,0.00041878,4]
[312060972,1705590646377,-1677.40187877,0.00041954,14]
[312060973,1705590646387,-286872.79589,0.00041999,7]
[312060974,1705590646398,-1500.0,0.00042,4]
[312060975,1705590646408,-1719.0,0.00042,15]
[312060976,1705590646418,-18423.0,0.00042,15]
[312060977,1705590646429,-1321.0,0.00042,15]
[312060978,1705590646439,-615.64947851,0.00042,15]
[312060979,1705590646449,-151.0,0.0004201,21]
[312060980,1705590646458,-500.0,0.000421,3]
[312060981,1705590646468,-1500.0,0.000421,3]
[312060982,1705590646477,-1000.0,0.00042117,7]
[312060983,1705590646488,-1500.0,0.00042137,7]
[312060984,1705590646498,-1000.0,0.00042203,7]
[312060985,1705590646508,-1000.0,0.00042213,7]
[312060986,1705590646520,-3479.31697369,0.00042247,4]
[312060987,1705590646530,-1000.0,0.00042252,7]
[312060988,1705590646540,-1000.0,0.00042274,7]
[312060989,1705590646550,-155.0,0.0004233,2]
[312060990,1705590646560,-1000.0,0.00042335,7]
[312060991,1705590646570,-1000.0,0.00042346,7]
[312060992,1705590646580,-1000.0,0.00042365,7]
[312060993,1705590646590,-150.30083188,0.00042368,14]
[312060994,1705590646600,-215.39207813,0.00042376,7]
[312060995,1705590646611,-1677.40187877,0.00042383,14]
[312060996,1705590646622,-1000.0,0.00042391,7]
[312060997,1705590646633,-1000.0,0.00042431,7]
[312060998,1705590646643,-364.79110072,0.000425,7]
[312060999,1705590646654,-1000.0,0.00042581,7]
[312061000,1705590646664,-603.7584966,0.00042582,7]
[312061001,1705590646676,-1000.0,0.00042583,7]
[312061002,1705590646687,-4187.66372421,0.00042678,4]
[312061003,1705590646697,-1171.501337,0.00042678,7]
[312061004,1705590646707,-1171.501337,0.00042678,7]
[312061005,1705590646718,-2494.5741,0.00042678,7]
[312061006,1705590646733,-2494.5741,0.00042678,7]
[312061007,1705590646743,-1000.0,0.00042678,7]
[312061008,1705590646753,-1000.0,0.00042754,7]
[312061009,1705590646763,-1000.0,0.00042757,7]
[312061010,1705590646774,-1677.4,0.00042811,30]
[312061011,1705590646784,-181.66,0.00042811,30]
[312061012,1705590646794,-2570.0,0.00042822,14]
[312061013,1705590646805,-4070.0,0.00042822,14]
[312061014,1705590646815,-1000.0,0.00042838,7]
[312061015,1705590646826,-1000.0,0.00042841,7]
[312061016,1705590646835,-233.17,0.0004288,30]
[312061017,1705590646845,-230.0,0.0004289,30]
[312061018,1705590646855,-200.0,0.000429,4]
[312061019,1705590646865,-150.3,0.00042905,30]
[312061020,1705590646874,-2494.5741,0.00042911,7]
[312061021,1705590646884,-2494.5741,0.00042911,7]
[312061022,1705590646894,-1000.0,0.00042919,7]
[312061023,1705590646903,-160.0,0.00042933,3]
[312061024,1705590646913,-151.0,0.00042961,7]
[312061025,1705590646923,-1171.501337,0.00042961,7]
[312061026,1705590646933,-1171.501337,0.00042961,7]
[312061027,1705590646942,-151.0,0.00042961,7]
[312061028,1705590646952,-151.0,0.00042961,7]
[312061029,1705590646961,-1000.0,0.00042962,7]
[312061030,1705590646973,-142508.30056336,0.00042969,7]
[312061031,1705590647100,-10202.84952288,0.00042969,7]
[312061032,1705590647112,-102963.2975454,0.00042969,7]
[312061033,1705590647124,-295.56464222,0.00042969,7]
[312061034,1705590647590,-471.0,0.000429,30]
[312061035,1705590647599,-49583.30892518,0.00042969,7]
[312061036,1705590647611,-13009.67645184,0.00042969,7]
[312061037,1705590647683,-2645.25003735,0.00042969,7]
[312061038,1705590647694,-808.93306313,0.00042969,7]
[312061039,1705590648995,-2513.00242395,0.00016219,2]
[312061040,1705590649007,-1007.85174704,0.00016219,2]
[312061041,1705590678568,-262.1521057,0.00016218,2]
[312061042,1705590678594,-170.76550909,0.00016218,2]
[312061043,1705590678621,-11567.08238521,0.00016219,2]
[312061044,1705590678728,-506.17236225,0.00016219,2]
[312061045,1705590681763,-1992.44777613,0.00016217,2]
[312061046,1705590681925,-40.66219951,0.00016217,2]
[312061047,1705590884580,5171.2962132,0.0001521,2]
[312061048,1705590930986,227.56212885,0.00016,5]
[312061049,1705590935532,620.26741538,0.0001521,2]
[312061050,1705590937474,342.87850745,0.0001521,2]
[312061051,1705590938087,154.95351395,0.0001521,2]
[312061052,1705590939519,1275.30976545,0.0001521,2]
[312061053,1705590939983,3836.57845187,0.0001521,2]
[312061054,1705590940421,614.877708,0.00015206,2]
[312061055,1705590940952,260.84386865,0.0001521,2]
[312061056,1705590943543,12976.517101,0.00015206,2]
[312061057,1705590951535,621.52976157,0.0001521,2]
[312061058,1705590952090,155.97388537,0.0001521,2]
[312061059,1705590953628,342.87850745,0.0001521,2]
[312061060,1705590953991,2051.68285647,0.0001521,2]
[312061061,1705590955524,827.07048975,0.0001521,2]
[312061062,1705590958954,260.84386865,0.0001521,2]
[312061063,1705590971474,462.54540788,0.0001521,2]
[312061072,1705590978388,24900.0,0.00015211,2]
[312061073,1705590980964,363.05963393,0.0001521,2]
[312061081,1705591012439,6661.8133947,0.00015324,2]
[312061082,1705591065890,173.8512272,0.00015191,2]
[312061087,1705591149835,2992.7707043,0.00015179,2]
[312061088,1705591172543,210.626715,0.0001554,2]
[312061089,1705591236526,250.0,0.00015167,2]
[312061094,1705591418564,491.755027,0.00015115,2]
[312061095,1705591460941,24900.0,0.0001511,2]
[312061100,1705591582968,-1992.22396465,0.00016088,2]
[312061101,1705591583071,-154.95351395,0.00016088,2]
[312061102,1705591583100,-3743.44064302,0.00016088,2]
[312061103,1705591583128,-154.95351395,0.00016089,2]
[312061104,1705591583155,-2001.1665667,0.00016089,2]
[312061105,1705591583184,-154.95351395,0.00016089,2]
[312061106,1705591583211,-616.3385083,0.00016089,2]
[312061107,1705591583239,-687.4903872,0.00016089,2]
[312061108,1705591583265,-2494.47938828,0.00016089,2]
[312061109,1705591583304,-12000.0,0.00016089,2]
[312061110,1705591583334,-5193.3351886,0.00016089,2]
[312061111,1705591583360,-154.95351395,0.0001609,2]
[312061112,1705591583386,-260.95401004,0.0001609,2]
[312061113,1705591583412,-191.28367071,0.0001609,2]
[312061114,1705591583439,-154.95351395,0.0001609,2]
[312061115,1705591583466,-6044.52010275,0.0001609,2]
[312061116,1705591583496,-7666.56972517,0.0001609,2]
[312061117,1705591583521,-4333.43027483,0.0001609,2]
[312061118,1705591583555,-12000.0,0.0001609,2]
[312061119,1705591583634,-4554.24367075,0.0001609,2]
[312061120,1705591583682,-561.25963229,0.00016091,2]
[312061121,1705591583726,-322.89759673,0.00016091,2]
[312061122,1705591583766,-242.95252514,0.00016091,2]
[312061123,1705591583807,-246.01934779,0.00016091,2]
[312061124,1705591583847,-301.73207078,0.00016091,2]
[312061125,1705591583888,-154.95351395,0.00016091,2]
[312061126,1705591583932,-5615.94164257,0.00016091,2]
[312061127,1705591583980,-12000.0,0.00016091,2]
[312061128,1705591584037,-4055.90545323,0.00016091,2]
[312061129,1705591584072,-253.93572922,0.00016092,2]
[312061130,1705591584109,-329.31129375,0.00016092,2]
[312061131,1705591584144,-4810.32547462,0.00016092,2]
[312061132,1705591584179,-452.38875182,0.00016093,2]
[312061133,1705591584214,-521.75377805,0.00016093,2]
[312061134,1705591584250,-286.17658089,0.00016093,2]
[312061135,1705591584288,-1290.20293842,0.00016093,2]
[312061136,1705591584330,-742.90703722,0.00016093,2]
[312061137,1705591584369,-977.3827654,0.00016093,2]
[312061138,1705591584399,-7954.79361021,0.00016094,2]
[312061139,1705591584568,-2324.91658717,0.00016094,2]
[312061140,1705591584604,-12000.0,0.00016094,2]
[312061141,1705591584634,-885.08922323,0.00016094,2]
[312061142,1705591584661,-5179.86226667,0.00016094,2]
[312061143,1705591584687,-3483.390888,0.00016094,2]
[312061144,1705591584713,-154.95351395,0.00016095,3]
[312061145,1705591584740,-154.95351395,0.00016095,2]
[312061146,1705591584766,-2141.7505942,0.00016095,2]
[312061147,1705591584802,-12000.0,0.00016095,2]
[312061148,1705591584836,-6719.06002923,0.00016095,2]
[312061149,1705591586030,1265.64175415,0.00016087,2]
[312061150,1705591586197,154.95351395,0.00016087,2]
[312061151,1705591586357,154.95351395,0.00016087,2]
[312061152,1705591587281,154.95351395,0.00016087,2]
[312061153,1705591597244,5179.86226667,0.00015986,2]
[312061154,1705591597332,154.95351395,0.00014532,2]
[312061155,1705591600598,977.3827654,0.00014532,2]
[312061156,1705591604968,7285.5623119,0.00015986,2]
[312061157,1705591607699,3483.390888,0.00015823,2]
[312061158,1705591613230,1771.81155846,0.00015985,2]
[312061159,1705591621334,154.95351395,0.00014531,2]
[312061160,1705591624586,169.70028221,0.00014531,2]
[312061161,1705591625679,3483.390888,0.00015822,2]
[312061162,1705591635370,210.626715,0.0001551,2]
[312061163,1705591637335,154.95351395,0.00014531,2]
[312061164,1705591647686,1395.40828682,0.00015822,2]
[312061165,1705591650586,977.3827654,0.00014531,2]
[312061166,1705591654262,155.02015262,0.00015822,2]
[312061167,1705591657338,154.95351395,0.00014531,2]
[312061168,1705591658630,10293.9434922,0.00015822,2]
[312061169,1705591668589,975.50938712,0.00014502,2]
[312061170,1705591680617,4014.54250496,0.00015822,2]
[312061171,1705591681539,154.95351395,0.00014501,2]
[312061205,1705591699440,154.95351395,0.00014501,2]
[312061206,1705591704764,154.95351395,0.00014501,2]
[312061207,1705591712343,250.0,0.00015135,2]
[312061212,1705591718753,182.7245571,0.00014501,2]
[312061213,1705591720784,202.5875853,0.00014501,2]
[312061215,1705591723436,154.95351395,0.00014501,2]
[312061216,1705591745350,154.95351395,0.00014498,2]
[312061222,1705591767350,154.95351395,0.00014498,2]
[312061225,1705591781674,3215.01498963,0.00014501,2]
[312061227,1705591784368,-154.95351395,0.00016106,2]
[312061228,1705591784394,-148.75537339,0.00016107,2]
[312061229,1705591784425,-6.19814056,0.00016107,2]
[312061231,1705591785355,154.95351395,0.00014497,2]
[312061232,1705591790043,-3910.1668584,0.00016107,2]
[312061233,1705591790100,-79.79932364,0.00016107,2]
[312061234,1705591792184,154.95351395,0.00016107,2]
[312061235,1705591802818,-155.26397017,0.00016107,2]
[312061236,1705591802845,-148.84026781,0.00016107,2]
[312061237,1705591803015,-6.20620894,0.00016107,2]
[312061238,1705591803044,-297.89802904,0.00016107,2]
[312061239,1705591803362,154.95351395,0.00014495,2]
[312061240,1705591803436,-263.36160325,0.00016107,2]
[312061241,1705591816904,-155.56105626,0.00016106,2]
[312061242,1705591816930,-156.24323221,0.00016107,2]
[312061243,1705591817165,-6.36335283,0.00016107,2]
[312061244,1705591825519,-154.95351395,0.00016107,3]
[312061245,1705591825546,-11845.04648605,0.00016107,2]
[312061246,1705591825651,-12000.0,0.00016107,2]
[312061247,1705591825850,-12000.0,0.00016107,2]
[312061248,1705591825948,-12000.0,0.00016107,2]
[312061249,1705591826088,-12000.0,0.00016107,2]
[312061250,1705591826194,-12000.0,0.00016107,2]
[312061251,1705591826308,-12000.0,0.00016107,2]
[312061252,1705591826407,-12000.0,0.00016107,2]
[312061253,1705591826529,-12000.0,0.00016107,2]
[312061254,1705591826619,-12000.0,0.00016107,2]
[312061255,1705591826753,-12000.0,0.00016107,2]
[312061256,1705591826850,-12000.0,0.00016107,2]
[312061257,1705591826946,-3836.87245843,0.00016107,2]
[312061304,1705591832220,-154.95351395,0.00016106,2]
[312061306,1705591832229,-15210.0058104,0.00016108,2]
[312061308,1705591832239,-4810.32547462,0.00016109,2]
[312061309,1705591832248,-20887.67394558,0.00016109,2]
[312061310,1705591832258,-13711.08982792,0.0001611,2]
[312061311,1705591832268,-521.46748187,0.00016115,2]
[312061312,1705591832277,-260.90100973,0.00016116,2]
[312061313,1705591832287,-1831.87261622,0.00016143,2]
[312061314,1705591832298,-672.94628219,0.00016143,2]
[312061315,1705591832308,-155.04647675,0.00016146,2]
[312061316,1705591832317,-155.01548915,0.00016146,2]
[312061317,1705591832327,-245.92930057,0.00016147,2]
[312061318,1705591832336,-481.32737387,0.00016147,2]
[312061319,1705591832346,-266.50001777,0.00016147,2]
[312061320,1705591832355,-5543.22750748,0.00016147,2]
[312061321,1705591832365,-328.29572382,0.00016147,2]
[312061322,1705591832375,-301.59769542,0.00016147,2]
[312061323,1705591832384,-3742.63964853,0.00016147,2]
[312061324,1705591832393,-286.08789979,0.00016147,2]
[312061325,1705591832402,-5064.07385633,0.00016147,2]
[312061326,1705591832411,-253.65999894,0.00016147,2]
[312061327,1705591832420,-1553.34716607,0.00016147,2]
[312061328,1705591832430,-751.11488802,0.00016147,2]
[312061329,1705591832439,-1991.48767001,0.00016147,2]
[312061330,1705591832448,-156.7090362,0.00016147,2]
[312061331,1705591832457,-452.30060806,0.00016148,2]
[312061332,1705591832467,-191.0978068,0.00016148,2]
[312061333,1705591832477,-616.01412459,0.00016148,2]
[312061334,1705591832486,-322.46170337,0.00016148,2]
[312061335,1705591832495,-243.16477716,0.00016148,2]
[312061336,1705591832504,-28392.27253166,0.00016149,2]
[312061337,1705591832610,-1293.55751984,0.00016161,2]
[312061338,1705591832619,-5857.69554311,0.00016161,2]
[312061340,1705591832628,-155.19607946,0.00016164,2]
[312061342,1705591832638,-470.34681749,0.00016178,2]
[312061344,1705591832647,-600.0,0.00016216,2]
[312061345,1705591832656,-600.0,0.00016216,2]
[312061347,1705591832665,-600.0,0.00016216,2]
[312061349,1705591832675,-155.46305651,0.00016217,2]
[312061350,1705591832684,-155.08522418,0.00016217,2]
[312061352,1705591832693,-272.37932438,0.000165,2]
[312061354,1705591832702,-873.68475195,0.00017235,2]
[312061356,1705591832711,-200.0,0.00017718,2]
[312061358,1705591832722,-10525.87251245,0.00017898,2]
[312061360,1705591832731,-187.93276,0.00019178,2]
[312061361,1705591832740,-165.90071,0.00019178,2]
[312061362,1705591832749,-280.0,0.00019489,2]
[312061364,1705591832759,-1113.73927963,0.000195,2]
[312061365,1705591832768,-678.05962952,0.0002,2]
[312061366,1705591832777,-154.9690062,0.0002,2]
[312061367,1705591832786,-528.65888712,0.00021,2]
[312061368,1705591832795,-327.24959811,0.00021,2]
[312061369,1705591832804,-391.0,0.00021438,7]
[312061370,1705591832813,-688.82709207,0.000217,2]
[312061371,1705591832822,-166.666666,0.00021918,2]
[312061372,1705591832831,-293.23530462,0.00022,4]
[312061373,1705591832840,-425.62034809,0.00022,2]
[312061374,1705591832850,-6761.51571557,0.00022331,2]
[312061375,1705591832859,-166.666666,0.00022431,2]
[312061376,1705591832870,-491.755027,0.00022672,2]
[312061377,1705591832880,-166.666666,0.00022944,2]
[312061378,1705591832889,-166.666666,0.00023456,2]
[312061379,1705591832898,-166.666666,0.00023969,2]
[312061380,1705591832907,-4010.78536694,0.00024,2]
[312061381,1705591832917,-166.666666,0.00024482,2]
[312061382,1705591832926,-678.93201338,0.00025,2]
[312061383,1705591832935,-154.95351395,0.00025,2]
[312061384,1705591832944,-4718.82684458,0.00025,2]
[312061385,1705591832953,-184.17443076,0.00025,2]
[312061386,1705591832963,-200.0,0.00025479,2]
[312061387,1705591832972,-526.29712741,0.00026,2]
[312061388,1705591832981,-620.82665189,0.000264,2]
[312061389,1705591832990,-161.152368,0.00026998,2]
[312061390,1705591832999,-155.0,0.00027397,2]
[312061391,1705591833008,-4898.25,0.00027397,3]
[312061392,1705591833017,-9340.63,0.00027397,3]
[312061393,1705591833026,-620.04133259,0.0002772,2]
[312061394,1705591833035,-290.00241025,0.00028,2]
[312061395,1705591833044,-158.60466484,0.0002828,2]
[312061396,1705591833053,-155.0,0.00028767,2]
[312061397,1705591833064,-582.49136977,0.000289,2]
[312061398,1705591833078,-2455.73923901,0.00029,2]
[312061399,1705591833088,-353.84902331,0.00029,2]
[312061400,1705591833097,-620.00206663,0.00029106,2]
[312061401,1705591833108,-153.0,0.00029315,2]
[312061402,1705591833117,-153.0,0.00029315,2]
[312061403,1705591833127,-153.0,0.00029315,2]
[312061404,1705591833136,-153.0,0.00029315,2]
[312061405,1705591833146,-582.49136974,0.00029887,2]
[312061406,1705591833156,-179.68230611,0.0003,3]
[312061407,1705591833165,-682.23213824,0.0003,3]
[312061408,1705591833174,-464.23133021,0.0003,2]
[312061409,1705591833184,-154.95351395,0.0003,2]
[312061410,1705591833193,-368.87856589,0.0003,6]
[312061411,1705591833202,-687.89788967,0.0003,4]
[312061412,1705591833211,-2491.60757104,0.0003,4]
[312061413,1705591833221,-201.08171049,0.0003,4]
[312061414,1705591833229,-1000.0,0.0003,30]
[312061415,1705591833239,-323.0,0.0003,2]
[312061416,1705591833248,-19279.0691777,0.00030132,2]
[312061417,1705591833257,-1196.96135251,0.00030133,4]
[312061418,1705591833266,-2995.72102978,0.00030134,4]
[312061419,1705591833274,-841.37,0.00030134,2]
[312061420,1705591833284,-841.37,0.00030134,2]
[312061421,1705591833293,-841.37,0.00030134,2]
[312061422,1705591833302,-841.37,0.00030134,2]
[312061423,1705591833311,-841.37,0.00030134,2]
[312061424,1705591833320,-841.37,0.00030134,2]
[312061425,1705591833329,-841.37,0.00030134,2]
[312061426,1705591833338,-841.37,0.00030134,2]
[312061427,1705591833347,-841.37,0.00030134,2]
[312061428,1705591833357,-96329.92388854,0.00030135,4]
[312061429,1705591833366,-500.0,0.00030136,2]
[312061430,1705591833376,-164.348067,0.00030137,2]
[312061431,1705591833385,-410.649427,0.00030137,2]
[312061432,1705591833394,-154.95351395,0.00030137,2]
[312061433,1705591833404,-154.95351395,0.00030137,4]
[312061434,1705591833413,-410.41281499,0.00030137,4]
[312061435,1705591833422,-351.14579978,0.00030137,2]
[312061436,1705591833435,-4319.3054765,0.00030137,4]
[312061437,1705591833444,-195.1690538,0.00030137,4]
[312061438,1705591833453,-211.29574429,0.00030137,4]
[312061439,1705591833463,-196.88588059,0.00030137,4]
[312061440,1705591833472,-537.44070193,0.00030137,4]
[312061441,1705591833482,-2757.35971232,0.00030137,4]
[312061442,1705591833492,-172.23474005,0.00030137,4]
[312061443,1705591833502,-283.01176432,0.00030137,3]
[312061444,1705591833511,-155.0,0.00030137,2]
[312061445,1705591833521,-500.0,0.00030273,2]
[312061446,1705591833530,-500.0,0.0003041,2]
[312061447,1705591833539,-1611.96814653,0.00030517,2]
[312061448,1705591833548,-165.6004103,0.00030517,10]
[312061449,1705591833557,-314.10737014,0.00030518,4]
[312061450,1705591833567,-433.42465245,0.00030518,4]
[312061451,1705591833577,-218.21658574,0.00030518,4]
[312061452,1705591833586,-609.06139062,0.00030519,4]
[312061453,1705591833595,-500.0,0.00030547,2]
[312061454,1705591833607,-620.00010333,0.00030561,2]
[312061455,1705591833616,-72041.80804199,0.00030665,4]
[312061456,1705591833626,-500.0,0.00030684,2]
[312061457,1705591833635,-246.0,0.0003071,30]
[312061458,1705591833645,-246.0,0.0003072,30]
[312061459,1705591833654,-246.0,0.0003073,30]
[312061460,1705591833663,-153.52997654,0.00030739,2]
[312061461,1705591833672,-500.0,0.0003074,2]
[312061462,1705591833681,-450.95448735,0.0003074,2]
[312061463,1705591833691,-417.12373402,0.0003074,2]
[312061464,1705591833700,-500.0,0.0003074,2]
[312061465,1705591833710,-476.33087881,0.0003074,2]
[312061466,1705591833719,-500.0,0.0003074,2]
[312061467,1705591833728,-500.0,0.0003074,2]
[312061468,1705591833738,-500.0,0.0003074,2]
[312061469,1705591833747,-500.0,0.0003074,2]
[312061470,1705591833756,-298.10653075,0.0003074,2]
[312061471,1705591833765,-500.0,0.0003074,2]
[312061472,1705591833774,-500.0,0.0003074,2]
[312061473,1705591833784,-500.0,0.0003074,2]
[312061474,1705591833793,-500.0,0.0003074,2]
[312061475,1705591833802,-500.0,0.0003074,2]
[312061476,1705591833811,-500.0,0.0003074,2]
[312061477,1705591833820,-500.0,0.0003074,2]
[312061478,1705591833829,-500.0,0.0003074,2]
[312061479,1705591833838,-500.0,0.0003074,2]
[312061480,1705591833847,-500.0,0.0003074,2]
[312061481,1705591833856,-500.0,0.0003074,2]
[312061482,1705591833865,-586.76423752,0.0003074,2]
[312061483,1705591833874,-500.0,0.0003074,2]
[312061484,1705591833884,-500.0,0.0003074,2]
[312061485,1705591833893,-500.0,0.0003074,2]
[312061486,1705591833902,-500.0,0.0003074,2]
[312061487,1705591833912,-500.0,0.0003074,2]
[312061488,1705591833920,-500.0,0.0003074,2]
[312061489,1705591833930,-500.0,0.0003074,2]
[312061490,1705591833939,-500.0,0.0003074,2]
[312061491,1705591833948,-500.0,0.0003074,2]
[312061492,1705591833958,-500.0,0.0003074,2]
[312061493,1705591833967,-500.0,0.0003074,2]
[312061494,1705591833976,-500.0,0.0003074,2]
[312061495,1705591833986,-500.0,0.0003074,2]
[312061496,1705591833995,-500.0,0.0003074,2]
[312061497,1705591834062,-500.0,0.0003074,2]
[312061498,1705591834080,-500.0,0.0003074,2]
[312061499,1705591834089,-500.0,0.0003074,2]
[312061500,1705591834098,-500.0,0.0003074,2]
[312061501,1705591834107,-500.0,0.0003074,2]
[312061502,1705591834116,-556.46449598,0.0003074,2]
[312061503,1705591834125,-500.0,0.0003074,2]
[312061504,1705591834133,-702.42768045,0.0003074,2]
[312061505,1705591834143,-702.42768045,0.0003074,2]
[312061506,1705591834153,-702.42768045,0.0003074,2]
[312061507,1705591834163,-702.42768045,0.0003074,2]
[312061508,1705591834172,-702.42768045,0.0003074,2]
[312061509,1705591834181,-702.42768045,0.0003074,2]
[312061510,1705591834190,-702.42768045,0.0003074,2]
[312061511,1705591834199,-702.42768045,0.0003074,2]
[312061512,1705591834208,-702.42768045,0.0003074,2]
[312061513,1705591834217,-702.42768045,0.0003074,2]
[312061514,1705591834225,-500.0,0.0003074,2]
[312061515,1705591834234,-500.0,0.0003074,2]
[312061516,1705591834243,-500.0,0.0003074,2]
[312061517,1705591834252,-500.0,0.0003074,2]
[312061518,1705591834261,-500.0,0.0003074,2]
[312061519,1705591834270,-500.0,0.0003074,2]
[312061520,1705591834279,-500.0,0.0003074,2]
[312061521,1705591834288,-702.42768045,0.0003074,2]
[312061522,1705591834297,-500.0,0.0003074,2]
[312061523,1705591834306,-500.0,0.0003074,2]
[312061524,1705591834315,-500.0,0.0003074,2]
[312061525,1705591834324,-500.0,0.0003074,2]
[312061526,1705591834334,-500.0,0.0003074,2]
[312061527,1705591834343,-570.77789941,0.0003074,2]
[312061528,1705591834354,-500.0,0.0003074,2]
[312061529,1705591834362,-500.0,0.0003074,2]
[312061530,1705591834372,-702.4276803,0.0003074,2]
[312061531,1705591834383,-500.0,0.0003074,2]
[312061532,1705591834392,-500.0,0.0003074,2]
[312061533,1705591834403,-50000.0,0.00030741,4]
[312061534,1705591834412,-226.59104283,0.000308,15]
[312061535,1705591834422,-50000.0,0.00030816,4]
[312061536,1705591834431,-500.0,0.00030821,2]
[312061537,1705591834440,-582.49136974,0.00030874,2]
[312061538,1705591834450,-5818.27865066,0.0003089,5]
[312061539,1705591834459,-50000.0,0.00030891,4]
[312061540,1705591834468,-2284.0140777,0.00030895,5]
[312061541,1705591834478,-150.80790162,0.00030917,7]
[312061542,1705591834487,-500.0,0.00030958,2]
[312061543,1705591834496,-410.649427,0.00030959,2]
[312061544,1705591834505,-841.37,0.00030999,2]
[312061545,1705591834514,-12243.87665029,0.00031,5]
[312061546,1705591834524,-238.04250494,0.00031,2]
[312061547,1705591834533,-97008.73081987,0.00031,4]
[312061548,1705591834542,-1000.0,0.00031,31]
[312061549,1705591834551,-150.80790162,0.00031061,7]
[312061550,1705591834561,-500.0,0.00031095,2]
[312061551,1705591834571,-160.81104418,0.00031106,2]
[312061552,1705591834580,-749.96567265,0.0003113,2]
[312061553,1705591834591,-227.4444335,0.0003113,2]
[312061554,1705591834601,-3771.02788506,0.0003113,2]
[312061555,1705591834610,-4353.78087108,0.0003113,2]
[312061556,1705591834619,-164.348067,0.00031183,2]
[312061557,1705591834628,-194.92607775,0.00031214,7]
[312061558,1705591834637,-500.0,0.00031232,2]
[312061559,1705591834646,-150.80790162,0.00031311,7]
[312061560,1705591834656,-500.0,0.00031369,2]
[312061561,1705591834665,-194.92607775,0.00031435,7]
[312061562,1705591834674,-500.0,0.00031506,2]
[312061563,1705591834683,-155.0,0.00031507,2]
[312061564,1705591834693,-194.92607775,0.00031613,7]
[312061565,1705591834702,-500.0,0.00031643,2]
[312061566,1705591834711,-150.0,0.00031739,2]
[312061567,1705591834720,-410.649427,0.00031781,2]
[312061568,1705591834729,-150.80790162,0.00031789,7]
[312061569,1705591834738,-582.49136974,0.0003186,2]
[312061570,1705591834748,-212.40088607,0.00031997,4]
[312061571,1705591834757,-650.89335401,0.00032,4]
[312061572,1705591834766,-1000.0,0.00032,32]
[312061573,1705591834775,-620.00009445,0.0003201,2]
[312061574,1705591834785,-164.348067,0.00032229,2]
[312061575,1705591834794,-194.92607775,0.00032403,7]
[312061576,1705591834803,-246.0,0.00032439,30]
[312061577,1705591834811,-246.0,0.00032449,30]
[312061578,1705591834821,-1273.45080855,0.00032458,2]
[312061579,1705591834830,-246.0,0.00032459,30]
[312061580,1705591834839,-150.80790162,0.00032469,7]
[312061581,1705591834849,-16930.14456756,0.000325,20]
[312061607,1705591838223,-376.40425201,0.0003089,2]
[312061609,1705591838233,-254290.0046445,0.000325,20]
[312061611,1705591838242,-150.80790162,0.00032591,7]
[312061612,1705591838250,-410.649427,0.00032603,2]
[312061614,1705591838261,-157.9218674,0.00032752,2]
[312061623,1705591838327,-194.92607775,0.00032802,7]
[312061626,1705591838349,-582.49136974,0.00032847,2]
[312061627,1705591838358,-311.13527,0.00032874,2]
[312061629,1705591838367,-950.0,0.00032876,2]
[312061631,1705591838376,-155.0,0.00032877,2]
[312061633,1705591838386,-2114.924983,0.00032947,2]
[312061635,1705591838394,-1375.696626,0.00032947,2]
[312061638,1705591838403,-502.514773,0.00032947,2]
[312061640,1705591838412,-299.203753,0.00032947,2]
[312061642,1705591838421,-249.937652,0.00032947,2]
[312061644,1705591838430,-299.203754,0.00032947,2]